bitfinex-derivatives/quotes_ETHF0:USTF0_20241231
["timestamp","ask_amount","ask_price","bid_price","bid_amount"]
[1735661714228,0.29329,3414.5,3414.4,0.29329]
[1735661714728,4.5396,3414.8,3414.2,2.34511798]
[1735661715025,0.29328,3414.7,3414.6,0.29327]
[1735661716022,4.83287,3414.8,3414.7,0.29327]
[1735661716422,4.5396,3414.8,3414.7,0.29327]
[1735661716921,4.83286,3414.8,3414.7,0.29327]
[1735661717123,4.5396,3414.8,3414.7,0.29327]
[1735661717817,4.83286,3414.8,3414.7,0.29327]
[1735661718719,4.5396,3414.8,3414.7,0.29327]
[1735661718922,3.2078,3415.3,3414.7,0.29327]
[1735661719224,4.5408,3415.3,3415.2,0.29323]
[1735661719427,3.2078,3415.3,3415.2,0.29323]
[1735661720125,3.2078,3415.3,3414.8,2.34511798]
[1735661720625,3.2078,3415.3,3415.2,0.29323]
[1735661721527,0.29324,3415.2,3415.1,0.29323]
[1735661721722,3.2078,3415.3,3414.8,2.34511798]
[1735661721933,3.2078,3415.3,3415.2,0.29323]
[1735661722122,3.2078,3415.3,3414.9,0.73314]
[1735661722123,0.29321,3415.5,3415.1,2.34511798]
[1735661722429,0.29321,3415.5,3415.4,0.29321]
[1735661722630,0.29323,3415.4,3415.3,0.29322]
[1735661723427,3.668,3415.7,3414.8,2.34511798]
[1735661723628,0.29325,3415.1,3415.0,0.29324]
[1735661723833,0.29323,3415.2,3415.1,0.29323]
[1735661724131,0.29325,3415.1,3415.0,0.29324]
[1735661724328,3.2078,3415.3,3414.6,3.94099]
[1735661724529,0.29323,3415.2,3415.1,0.29323]
[1735661725128,3.2078,3415.3,3414.6,3.2078]
[1735661725330,3.2078,3414.9,3414.2,2.34511798]
[1735661725530,0.29327,3414.7,3414.3,0.29331]
[1735661725730,0.29327,3414.8,3414.7,0.29327]
[1735661725933,3.2078,3415.3,3414.5,2.34511798]
[1735661726136,0.29326,3414.9,3414.8,0.29326]
[1735661726530,0.29325,3415.0,3414.9,0.29325]
[1735661726836,0.29324,3415.1,3415.0,0.29324]
[1735661727038,0.29325,3415.0,3414.9,0.29325]
[1735661727228,3.2078,3415.2,3414.6,0.29328]
[1735661727433,0.29327,3414.7,3414.6,0.29328]
[1735661728337,0.7331,3415.1,3414.2,2.34511798]
[1735661728533,0.29327,3414.8,3414.7,0.29326]
[1735661728837,0.29324,3415.1,3415.0,0.29324]
[1735661729337,8.93405045,3415.2,3414.6,0.73321]
[1735661729526,8.93405045,3415.2,3414.3,0.73327]
[1735661729725,0.29328,3414.6,3414.5,0.29328]
[1735661729929,0.29328,3414.7,3414.6,0.29327]
[1735661730130,3.50107,3414.8,3414.7,0.29327]
[1735661730735,3.2078,3414.8,3414.7,0.29327]
[1735661732338,0.2933,3414.4,3414.3,0.2933]
[1735661732631,3.2078,3414.8,3414.1,3.2078]
[1735661732833,0.29329,3414.5,3414.3,0.2933]
[1735661733232,0.4495,3414.4,3414.3,0.2933]
[1735661737238,0.29333,3414.1,3413.6,2.34511798]
[1735661737432,3.6573,3414.4,3413.7,0.29335]
[1735661737433,0.29335,3413.8,3413.7,0.29335]
[1735661737633,3.2078,3414.0,3413.5,4.59934449]
[1735661737932,0.442,3413.9,3413.8,0.29335]
[1735661738134,0.73534,3413.9,3413.8,0.29335]
[1735661738329,0.442,3413.9,3413.5,4.59934449]
[1735661738532,0.29337,3413.6,3413.4,0.29338]
[1735661738736,0.29337,3413.5,3413.4,0.29338]
[1735661738938,0.4653,3413.8,3413.2,3.2078]
[1735661739240,0.29339,3413.4,3413.3,0.29339]
[1735661739442,0.4492,3413.7,3413.2,3.2078]
[1735661739636,0.29338,3413.5,3413.4,0.29338]
[1735661739835,0.29339,3413.4,3413.3,0.29338]
[1735661740347,0.29339,3413.3,3413.2,3.5012]
[1735661740642,0.29341,3413.2,3413.1,0.2934]
[1735661741142,0.29343,3413.0,3412.9,0.29342]
[1735661741644,0.29343,3412.9,3412.8,3.50123]
[1735661742143,0.29343,3412.9,3412.8,3.2078]
[1735661743544,9.83145045,3413.1,3412.5,0.29346]
[1735661743743,0.29345,3412.7,3412.5,0.29346]
[1735661743945,0.4524,3412.6,3412.5,0.29346]
[1735661745348,9.83145045,3413.1,3412.4,2.34511798]
[1735661745542,9.83145045,3413.1,3413.0,0.29342]
[1735661746650,5.72625045,3413.1,3413.0,2.63853798]
[1735661746848,4.69888045,3413.1,3413.0,7.63853798]
[1735661747037,4.69888045,3413.8,3413.7,0.29336]
[1735661747844,4.69888045,3413.8,3412.7,6.28652798]
[1735661748043,3.2078,3413.5,3412.7,5.55291798]
[1735661748442,3.2078,3413.5,3413.4,0.29338]
[1735661748642,3.2078,3413.5,3412.8,0.73359]
[1735661748839,0.4592,3413.4,3413.3,0.29338]
[1735661750450,0.29336,3413.7,3413.6,0.29336]
[1735661750951,0.29337,3413.6,3413.5,0.29337]
[1735661751243,0.29338,3413.5,3413.3,0.29338]
[1735661751445,3.50118,3413.5,3413.4,0.29338]
[1735661751638,0.29339,3413.4,3412.8,0.73359]
[1735661751843,0.29339,3413.4,3413.3,0.29339]
[1735661752352,0.4202,3413.8,3413.3,0.29339]
[1735661752544,0.4202,3413.8,3412.7,5.55291798]
[1735661752845,0.29338,3413.5,3412.9,0.73357]
[1735661753050,0.4202,3413.8,3413.4,0.29338]
[1735661753247,0.4202,3413.8,3413.1,5.55291798]
[1735661753446,0.4202,3413.8,3413.6,0.29336]
[1735661753640,0.4202,3413.8,3413.4,2.34511798]
[1735661754046,0.4202,3413.8,3413.4,0.29338]
[1735661754350,0.4202,3413.8,3413.5,0.29337]
[1735661754751,0.4202,3413.8,3413.1,2.34511798]
[1735661755048,0.4202,3413.8,3413.5,0.29337]
[1735661755951,0.4202,3413.8,3413.1,2.34511798]
[1735661756141,0.4202,3413.8,3413.2,0.73351]
[1735661756346,0.4202,3413.8,3413.6,0.29336]
[1735661756554,0.4202,3413.8,3413.7,0.29336]
[1735661760457,0.4202,3413.8,3413.7,2.63847798]
[1735661760758,0.4202,3413.8,3413.7,0.29336]
[1735661763247,3.2078,3414.3,3414.2,0.29331]
[1735661763451,0.8941,3414.4,3414.3,0.29331]
[1735661763855,6.87540527,3415.0,3414.2,3.2078]
[1735661764155,3.2078,3415.1,3414.7,2.34511798]
[1735661764354,7.11142196,3415.4,3415.3,0.29322]
[1735661764652,6.87540527,3415.4,3415.3,0.29322]
[1735661765455,3.2078,3415.9,3415.8,0.29318]
[1735661765655,3.637,3415.9,3415.8,0.29318]
[1735661766053,0.4292,3415.9,3415.8,0.29318]
[1735661773058,3.637,3415.9,3415.1,3.2078]
[1735661773367,3.93017,3415.9,3415.7,0.29318]
[1735661773561,3.637,3415.9,3415.1,3.2078]
[1735661773864,3.637,3415.9,3415.8,0.29318]
[1735661775164,0.4292,3415.9,3415.8,0.29318]
[1735661775558,0.4531,3416.0,3415.9,0.29317]
[1735661775762,3.2078,3416.3,3416.2,0.29314]
[1735661775962,1.2997,3416.5,3416.4,0.29313]
[1735661777368,1.59282,3416.5,3416.4,0.29313]
[1735661777759,1.2997,3416.5,3416.4,0.29313]
[1735661779364,0.29313,3416.4,3416.3,0.29313]
[1735661779565,1.59282,3416.5,3416.3,0.29313]
[1735661779863,1.2997,3416.5,3416.4,0.29313]
[1735661780272,0.8655,3416.5,3416.4,0.29313]
[1735661780570,3.2078,3416.7,3416.6,0.29311]
[1735661781468,3.5009,3416.7,3416.6,0.29311]
[1735661781769,3.2078,3416.7,3416.6,0.29311]
[1735661782367,3.2078,3417.1,3417.0,0.29307]
[1735661782669,3.2078,3417.6,3417.5,0.29303]
[1735661783268,0.8849,3417.9,3417.3,2.34511798]
[1735661783568,0.8849,3417.9,3417.8,0.29301]
[1735661784970,3.2078,3418.0,3417.9,0.293]
[1735661786873,3.2078,3418.0,3417.9,2.63811798]
[1735661789068,3.2078,3418.0,3417.9,0.293]
[1735661790974,3.2078,3418.0,3417.5,3.2078]
[1735661791170,3.2078,3418.0,3417.9,0.293]
[1735661791976,0.29299,3418.0,3417.8,0.293]
[1735661792169,0.29297,3418.3,3418.1,0.29298]
[1735661792668,0.4231,3418.4,3417.6,0.73256]
[1735661792867,0.29297,3418.2,3418.0,0.29298]
[1735661793063,0.4231,3418.4,3417.5,3.2078]
[1735661793263,0.4231,3418.4,3418.1,0.29297]
[1735661793464,0.71606,3418.4,3418.2,0.29297]
[1735661794372,0.71606,3418.4,3418.3,0.29296]
[1735661794373,0.4231,3418.4,3418.3,0.29296]
[1735661794770,0.4231,3418.4,3417.7,3.07765798]
[1735661795274,0.29297,3418.3,3418.1,0.29298]
[1735661796181,0.29298,3418.1,3417.8,0.29301]
[1735661796481,0.29298,3418.1,3418.0,0.29299]
[1735661796779,0.29298,3418.1,3417.7,2.34511798]
[1735661796780,0.4231,3418.4,3418.1,0.29298]
[1735661796973,0.29297,3418.3,3418.1,0.29298]
[1735661797166,0.29297,3418.2,3418.1,0.29298]
[1735661797376,0.29297,3418.3,3418.1,0.29298]
[1735661797567,0.29297,3418.2,3418.1,0.29298]
[1735661798078,0.4231,3418.4,3417.7,2.34511798]
[1735661798481,0.29296,3418.3,3418.1,0.29298]
[1735661798973,0.4231,3418.4,3418.1,0.29298]
[1735661798974,0.29297,3418.2,3418.1,0.29298]
[1735661799479,0.4231,3418.4,3417.7,2.34511798]
[1735661800078,0.4231,3418.4,3417.6,0.73255]
[1735661800079,0.29298,3418.1,3418.0,0.29298]
[1735661800284,0.4231,3418.4,3418.0,0.29298]
[1735661800576,0.4231,3418.4,3417.5,0.73258]
[1735661800777,0.29297,3418.2,3418.1,0.29298]
[1735661800973,0.29297,3418.3,3418.2,0.29297]
[1735661801176,0.71606,3418.4,3418.3,0.29296]
[1735661801572,0.4231,3418.4,3418.3,0.29296]
[1735661802468,3.2078,3418.5,3418.4,0.29295]
[1735661803476,3.2078,3418.5,3418.0,0.29299]
[1735661803675,0.4464,3418.4,3418.0,0.29299]
[1735661803875,0.4464,3418.4,3417.9,3.2078]
[1735661804179,0.29298,3418.1,3417.9,3.2078]
[1735661804475,0.29298,3418.2,3418.0,0.29298]
[1735661804683,0.4464,3418.4,3418.0,0.29298]
[1735661804885,0.29298,3418.1,3418.0,0.29298]
[1735661805176,0.29298,3418.2,3418.1,0.29298]
[1735661805382,0.29299,3418.1,3418.0,0.29298]
[1735661805581,0.29299,3418.1,3417.5,4.636]
[1735661805582,3.94027,3418.1,3417.5,4.636]
[1735661805885,3.94027,3418.1,3417.6,0.29302]
[1735661805886,0.29302,3417.7,3417.6,0.29302]
[1735661806087,0.73248,3418.0,3417.0,3.2078]
[1735661806283,0.29306,3417.2,3417.0,3.50087]
[1735661806494,0.29307,3417.1,3417.0,3.2078]
[1735661806984,6.28555798,3417.3,3416.4,0.446]
[1735661807185,0.29306,3417.2,3417.0,0.29307]
[1735661807381,3.2078,3417.3,3416.4,0.446]
[1735661807686,0.29309,3416.8,3416.4,0.446]
[1735661807884,0.2931,3416.8,3416.6,0.2931]
[1735661808184,0.4525,3416.7,3416.6,0.29311]
[1735661808382,0.7456,3416.7,3416.6,0.29311]
[1735661808684,0.29311,3416.6,3416.5,0.29311]
[1735661809191,0.7456,3416.7,3416.4,0.446]
[1735661809380,0.29311,3416.6,3416.5,0.29311]
[1735661809984,0.7326,3417.5,3416.5,3.2078]
[1735661810187,0.29307,3417.1,3417.0,0.29307]
[1735661810389,0.4437,3417.4,3416.9,2.34511798]
[1735661810586,0.4437,3417.4,3416.9,5.55291798]
[1735661810885,0.73674,3417.4,3417.3,0.29305]
[1735661811086,0.29306,3417.3,3417.2,0.29305]
[1735661811479,0.4437,3417.4,3416.9,3.2078]
[1735661811685,0.29306,3417.2,3417.1,0.29306]
[1735661812285,4.0836,3417.4,3416.4,3.6538]
[1735661812484,3.2078,3417.0,3416.4,0.446]
[1735661812689,0.29313,3416.4,3416.3,0.29313]
[1735661813286,3.2078,3416.6,3416.0,3.2078]
[1735661813587,0.29315,3416.1,3416.0,3.2078]
[1735661813783,0.4476,3416.5,3416.0,3.2078]
[1735661814293,0.29315,3416.2,3416.0,3.50095]
[1735661814593,0.29314,3416.3,3416.1,0.29314]
[1735661814782,0.4476,3416.5,3416.0,3.2078]
[1735661814988,0.29313,3416.4,3416.2,0.29314]
[1735661815189,0.74073,3416.5,3416.2,0.29314]
[1735661815388,0.4476,3416.5,3416.2,0.29314]
[1735661815780,0.4476,3416.5,3416.0,3.2078]
[1735661815781,0.74072,3416.5,3416.0,3.2078]
[1735661815988,0.74072,3416.5,3416.2,0.29314]
[1735661816182,0.4476,3416.5,3416.3,0.29313]
[1735661816382,0.4476,3416.5,3416.0,3.2078]
[1735661816588,0.4476,3416.5,3416.4,0.29313]
[1735661817591,0.74072,3416.5,3416.2,0.29314]
[1735661818391,0.4476,3416.5,3416.1,0.4437]
[1735661818587,2.34511798,3416.4,3415.6,3.2078]
[1735661818788,0.29314,3416.3,3415.6,3.2078]
[1735661818992,0.29314,3416.3,3415.6,5.55291798]
[1735661819193,0.29314,3416.3,3416.0,0.29316]
[1735661819495,0.29313,3416.4,3416.1,0.29315]
[1735661819994,0.29313,3416.4,3416.2,0.29314]
[1735661820188,0.4476,3416.5,3415.6,5.55291798]
[1735661820395,0.4476,3416.5,3415.9,2.34511798]
[1735661820693,0.4321,3416.7,3416.0,3.2078]
[1735661820893,0.4321,3416.7,3416.4,0.29312]
[1735661821092,0.4321,3416.7,3416.6,0.29311]
[1735661821396,0.29309,3416.8,3416.7,0.29309]
[1735661821786,0.29309,3416.8,3416.2,0.4599]
[1735661821787,1.3089,3416.9,3416.5,0.29311]
[1735661822095,0.29309,3416.8,3416.6,0.2931]
[1735661822290,0.2931,3416.7,3416.6,0.2931]
[1735661822490,1.3089,3416.9,3416.3,0.29313]
[1735661822690,1.3089,3416.9,3416.6,0.29311]
[1735661822997,1.3089,3416.9,3416.2,0.4599]
[1735661823205,1.3089,3416.9,3416.0,3.2078]
[1735661823399,0.29313,3416.3,3416.2,0.29314]
[1735661823695,0.73274,3416.8,3416.2,0.29314]
[1735661823894,0.29314,3416.3,3416.2,0.29314]
[1735661824198,0.29311,3416.6,3416.4,0.29312]
[1735661824395,1.3089,3416.9,3416.0,3.94071]
[1735661824592,0.8711,3416.9,3416.8,0.29309]
[1735661824796,5.70900071,3417.2,3417.1,0.29307]
[1735661824989,3.2078,3417.4,3417.3,0.29305]
[1735661824990,8.91680071,3417.4,3417.3,0.29305]
[1735661825389,8.91680071,3417.4,3417.3,3.50085]
[1735661825390,5.70900071,3417.4,3417.3,3.50085]
[1735661825987,3.2078,3418.1,3417.3,3.2078]
[1735661826399,3.2078,3418.1,3417.7,0.29301]
[1735661826400,0.29301,3417.8,3417.7,0.29301]
[1735661826690,3.2078,3418.1,3417.4,2.34511798]
[1735661826892,0.293,3417.9,3417.8,0.293]
[1735661827098,0.29299,3418.0,3417.9,0.293]
[1735661827496,3.2078,3418.1,3417.4,3.07772798]
[1735661827696,3.2078,3418.1,3417.8,0.29301]
[1735661827893,0.293,3417.9,3417.7,0.29301]
[1735661828092,0.293,3417.9,3417.8,0.29301]
[1735661828396,3.2078,3418.1,3417.3,3.2078]
[1735661828593,0.29302,3417.6,3417.4,0.29304]
[1735661829187,0.29304,3417.5,3417.4,0.29304]
[1735661829388,0.29304,3417.4,3417.3,3.50085]
[1735661829993,4.0931,3417.7,3417.3,3.2078]
[1735661830190,4.38612,3417.7,3417.6,0.29302]
[1735661830394,4.0931,3417.7,3417.3,3.2078]
[1735661830595,0.29303,3417.6,3417.5,0.29303]
[1735661830894,4.0931,3417.7,3417.6,0.29302]
[1735661831099,4.38611,3417.7,3417.6,0.29302]
[1735661831299,0.29303,3417.6,3417.5,0.29303]
[1735661832602,0.29304,3417.5,3417.4,0.29303]
[1735661832788,0.29304,3417.4,3417.3,3.2078]
[1735661832994,0.29307,3417.1,3417.0,0.29307]
[1735661833294,0.29305,3417.3,3417.2,0.29305]
[1735661833495,6.43821798,3417.7,3416.9,0.4631]
[1735661833689,0.73256,3417.6,3416.9,0.4631]
[1735661833899,0.29306,3417.2,3417.1,0.29306]
[1735661834405,6.43821798,3417.7,3416.9,0.4631]
[1735661834700,3.2078,3417.3,3416.9,0.4631]
[1735661834906,2.34511798,3417.1,3416.3,4.636]
[1735661835203,3.2078,3416.8,3416.7,0.2931]
[1735661835995,3.2078,3416.8,3416.3,4.636]
[1735661836195,3.2078,3416.8,3416.7,0.2931]
[1735661836400,8.91680071,3417.3,3417.2,0.29306]
[1735661836600,8.91680071,3417.3,3417.0,0.29307]
[1735661836601,0.29306,3417.2,3417.0,0.29307]
[1735661836799,0.29308,3417.0,3416.9,0.29308]
[1735661837691,0.29308,3416.9,3416.8,0.29309]
[1735661838094,3.2078,3417.3,3416.3,7.8438]
[1735661838300,0.29312,3416.5,3416.4,0.29312]
[1735661838700,0.29313,3416.4,3416.3,0.29313]
[1735661839099,1.3254,3416.8,3416.1,0.4359]
[1735661839301,0.29312,3416.5,3416.3,0.29313]
[1735661839500,1.3254,3416.8,3416.3,0.29313]
[1735661839905,1.3254,3416.8,3416.1,0.4359]
[1735661840205,0.29315,3416.2,3415.9,3.2078]
[1735661840405,3.2078,3416.5,3415.9,3.2078]
[1735661840602,0.29316,3416.1,3415.9,3.50096]
[1735661841104,0.29316,3416.0,3415.9,3.50096]
[1735661841501,0.29316,3416.0,3415.9,0.29316]
[1735661842203,3.2078,3416.5,3415.6,3.50099798]
[1735661842506,0.29315,3416.2,3416.0,0.29315]
[1735661842695,0.29315,3416.2,3416.1,0.29315]
[1735661843302,0.29317,3415.9,3415.7,0.29319]
[1735661843502,0.4523,3416.1,3415.7,0.29319]
[1735661843711,0.29317,3415.9,3415.7,0.29319]
[1735661844005,0.29318,3415.8,3415.7,0.29319]
[1735661844312,0.8989,3416.0,3415.6,0.4229]
[1735661844508,0.29323,3415.3,3415.2,0.29322]
[1735661844702,3.2078,3415.9,3415.1,7.8438]
[1735661844906,0.29323,3415.2,3415.1,8.13703]
[1735661845510,0.73299,3415.7,3415.1,7.8438]
[1735661845708,3.2078,3415.5,3414.9,0.4494]
[1735661845917,3.2078,3415.5,3414.7,3.2078]
[1735661845918,2.34511798,3415.3,3414.7,3.2078]
[1735661846104,0.29328,3414.6,3414.5,0.74268]
[1735661846304,3.9409,3415.1,3413.9,3.3443]
[1735661846305,3.2078,3415.1,3413.9,3.3443]
[1735661846501,0.4259,3414.5,3413.9,3.6572]
[1735661846705,0.29333,3414.0,3413.9,3.2078]
[1735661847009,0.899,3414.4,3414.0,0.29333]
[1735661847204,0.29332,3414.1,3414.0,0.29333]
[1735661847512,0.29333,3414.0,3413.9,3.2078]
[1735661848307,0.899,3414.4,3413.7,4.636]
[1735661848503,0.73332,3414.1,3413.3,3.2078]
[1735661848704,3.2078,3413.9,3413.1,1.221]
[1735661848906,0.29336,3413.7,3413.5,0.29337]
[1735661849504,0.29336,3413.7,3413.6,0.29337]
[1735661849808,3.2078,3414.3,3413.5,3.2078]
[1735661850114,0.29331,3414.2,3414.0,0.29332]
[1735661850609,0.899,3414.4,3414.1,0.29332]
[1735661850807,0.899,3414.4,3414.2,0.29331]
[1735661850808,1.1923,3414.4,3414.2,0.29331]
[1735661851011,0.899,3414.4,3413.5,3.2078]
[1735661851210,0.29331,3414.3,3413.5,3.2078]
[1735661851407,0.29331,3414.3,3414.1,0.29332]
[1735661852015,0.29333,3414.1,3413.8,0.29334]
[1735661852214,3.2078,3414.3,3413.5,0.29337]
[1735661852415,3.94111,3414.2,3413.4,0.29338]
[1735661852714,0.73331,3414.1,3413.1,3.2078]
[1735661852913,0.29337,3413.7,3413.4,0.29338]
[1735661853318,0.29332,3414.1,3413.6,0.29336]
[1735661853508,0.29332,3414.1,3413.9,0.29333]
[1735661853708,0.29334,3414.0,3413.8,0.29335]
[1735661854115,0.29333,3414.1,3413.8,0.29335]
[1735661854512,3.2078,3414.2,3413.2,4.7729]
[1735661854713,3.2078,3414.2,3413.2,4.636]
[1735661854914,0.29335,3413.8,3413.2,4.636]
[1735661855115,0.29336,3413.7,3413.4,0.29338]
[1735661855316,3.2078,3414.2,3413.2,4.636]
[1735661855516,0.29336,3413.7,3413.4,0.29338]
[1735661855821,0.441,3413.6,3413.5,0.29337]
[1735661856413,0.29336,3413.8,3413.2,4.636]
[1735661856623,0.29336,3413.8,3413.7,0.29336]
[1735661856819,0.29334,3413.9,3413.2,4.636]
[1735661857014,0.29334,3413.9,3413.7,0.29335]
[1735661857416,0.29334,3413.9,3413.2,4.636]
[1735661857811,0.441,3414.1,3413.2,4.636]
[1735661858016,0.29335,3413.8,3413.6,0.29336]
[1735661858221,3.2078,3413.8,3412.9,7.44147235]
[1735661858415,3.2078,3413.4,3412.9,2.80547235]
[1735661858615,3.2078,3413.4,3412.6,3.2078]
[1735661858814,0.2934,3413.3,3413.0,0.29341]
[1735661859015,3.2078,3413.4,3412.6,3.2078]
[1735661859225,0.29341,3413.2,3413.0,0.29341]
[1735661859425,3.2078,3413.4,3412.5,4.02647235]
[1735661859426,0.29342,3413.0,3412.5,4.02647235]
[1735661859626,0.29342,3413.0,3412.9,0.29343]
[1735661859828,0.434,3413.3,3412.5,4.02647235]
[1735661860027,0.29342,3413.0,3412.9,0.29342]
[1735661860424,0.434,3413.3,3412.5,2.80547235]
[1735661860627,0.29343,3412.9,3412.8,0.75703]
[1735661861024,0.29343,3412.9,3412.8,0.4636]
[1735661861427,0.29343,3412.8,3412.7,0.29344]
[1735661861728,0.29346,3412.6,3412.5,0.29345]
[1735661861918,0.29346,3412.5,3412.4,0.74976]
[1735661862121,0.8853,3412.9,3412.4,0.4563]
[1735661862331,0.29345,3412.6,3412.5,0.29345]
[1735661862531,0.29345,3412.7,3412.6,0.29345]
[1735661863727,0.29346,3412.6,3412.5,0.29345]
[1735661864029,0.8853,3412.9,3412.4,0.4563]
[1735661864231,0.29343,3412.8,3412.7,0.29344]
[1735661864527,1.17873,3412.9,3412.8,0.29343]
[1735661864724,0.8853,3412.9,3412.4,0.4563]
[1735661865033,1.17873,3412.9,3412.8,0.29343]
[1735661865529,0.29345,3412.7,3412.6,0.29345]
[1735661865932,0.8853,3412.9,3412.4,0.4563]
[1735661866125,0.29346,3412.5,3412.4,0.74977]
[1735661866435,0.29347,3412.4,3412.3,0.29347]
[1735661866927,0.29348,3412.3,3412.2,0.29348]
[1735661867128,0.4597,3412.3,3411.8,0.29352]
[1735661867332,0.29351,3411.9,3411.8,0.29352]
[1735661867535,0.29352,3411.9,3411.8,0.29351]
[1735661867729,0.29353,3411.8,3411.7,0.29352]
[1735661867934,0.73377,3412.0,3411.5,0.29355]
[1735661868232,0.29356,3411.5,3411.4,0.29355]
[1735661868432,0.29356,3411.4,3411.3,3.6288]
[1735661868828,0.29356,3411.4,3411.3,0.421]
[1735661869030,0.29356,3411.4,3410.9,0.29359]
[1735661869337,0.29359,3411.1,3410.7,5.857]
[1735661869634,0.29358,3411.1,3411.0,0.29359]
[1735661869833,0.8926,3411.3,3410.8,0.2936]
[1735661869834,0.2936,3410.9,3410.8,0.2936]
[1735661870033,0.8926,3411.3,3410.9,0.29359]
[1735661870034,0.29359,3411.0,3410.9,0.29359]
[1735661870234,0.29359,3411.0,3410.6,3.2078]
[1735661870235,0.8926,3411.3,3410.6,3.2078]
[1735661870535,4.1004,3411.3,3411.0,0.29359]
[1735661870727,0.29359,3411.0,3410.9,0.29359]
[1735661871332,4.1004,3411.3,3410.6,3.2078]
[1735661871828,0.2936,3411.0,3410.9,0.29359]
[1735661872026,0.29361,3410.9,3410.8,0.2936]
[1735661872432,0.29358,3411.1,3410.9,0.2936]
[1735661872721,0.29361,3410.8,3410.5,0.421]
[1735661872921,2.81034235,3411.2,3410.5,0.421]
[1735661873132,0.2936,3410.9,3410.8,0.2936]
[1735661873334,2.81034235,3411.2,3410.5,0.421]
[1735661873626,3.6434,3411.3,3411.2,0.29357]
[1735661873835,3.2078,3411.3,3411.2,0.29357]
[1735661875726,3.2078,3411.3,3410.7,8.57783]
[1735661875727,3.2078,3411.3,3410.7,7.8438]
[1735661875933,0.29361,3410.8,3410.7,8.13741]
[1735661876132,0.29361,3410.8,3410.7,4.92961]
[1735661876631,0.2936,3410.9,3410.8,0.2936]
[1735661877731,0.29361,3410.8,3410.7,4.636]
[1735661878434,3.2078,3410.9,3410.0,1.6478]
[1735661878635,0.29362,3410.7,3410.6,0.29361]
[1735661879037,3.2078,3410.9,3410.1,3.2078]
[1735661879235,3.5014,3410.9,3410.8,0.29361]
[1735661880040,3.2078,3410.9,3410.8,0.29361]
[1735661881131,3.04477126,3411.6,3411.4,0.29354]
[1735661881132,3.2078,3411.5,3411.4,0.29354]
[1735661881741,0.29354,3411.6,3411.5,0.29354]
[1735661882036,3.6644,3411.9,3411.1,3.94175]
[1735661882341,0.29353,3411.8,3411.6,0.29353]
[1735661882640,0.29352,3411.8,3411.6,0.29353]
[1735661882841,3.6644,3411.9,3411.8,0.29352]
[1735661883139,0.29353,3411.7,3411.5,0.29354]
[1735661883742,3.6644,3411.9,3411.1,3.2078]
[1735661883939,3.2078,3411.3,3410.9,0.4244]
[1735661884135,3.50137,3411.3,3411.1,0.29357]
[1735661884450,3.2078,3411.8,3410.9,0.4244]
[1735661884633,3.2078,3411.8,3411.0,3.2078]
[1735661884937,0.29358,3411.2,3411.1,0.29358]
[1735661885131,0.29358,3411.2,3410.8,4.636]
[1735661885333,0.9039,3411.1,3411.0,0.29358]
[1735661886243,0.4573,3411.1,3411.0,0.29358]
[1735661886542,1.19746,3411.5,3411.4,0.29355]
[1735661887044,0.9039,3411.5,3411.4,0.29355]
[1735661887635,3.2078,3411.8,3411.3,1.46783]
[1735661887842,3.50132,3411.8,3411.7,0.29353]
[1735661888038,0.29354,3411.7,3411.6,0.29353]
[1735661888242,0.29356,3411.4,3411.3,0.29355]
[1735661888536,3.2078,3411.8,3411.2,0.4269]
[1735661888743,3.2078,3411.8,3411.7,0.29353]
[1735661888744,3.50132,3411.8,3411.7,0.29353]
[1735661888933,3.2078,3411.8,3411.7,0.29353]
[1735661889636,1.3363,3412.1,3412.0,0.2935]
[1735661889842,0.4572,3412.1,3412.0,0.2935]
[1735661890044,3.2078,3412.2,3412.1,0.29349]
[1735661890238,0.29347,3412.4,3411.7,0.29353]
[1735661890438,0.8708,3412.6,3411.7,0.29353]
[1735661890632,0.29349,3412.3,3412.2,0.29349]
[1735661891337,0.29347,3412.5,3412.4,0.29346]
[1735661891741,1.16426,3412.6,3412.5,0.29346]
[1735661891938,0.4478,3412.6,3412.5,0.29346]
[1735661892144,0.74125,3412.6,3412.5,0.29346]
[1735661892445,0.4478,3412.6,3412.5,0.29346]
[1735661893047,3.2078,3412.7,3412.6,0.29345]
[1735661893644,3.50124,3412.7,3412.6,0.29345]
[1735661894145,3.2078,3412.7,3412.6,0.29345]
[1735661894749,0.4208,3412.8,3412.3,0.73369]
[1735661894952,0.4208,3412.8,3412.7,0.29344]
[1735661895247,3.6286,3412.8,3412.7,0.29344]
[1735661895449,0.4208,3412.8,3412.7,0.29344]
[1735661895847,3.6286,3412.8,3412.7,0.29344]
[1735661896047,3.6286,3412.8,3412.2,5.16252]
[1735661896247,3.6286,3412.8,3412.2,4.4288]
[1735661896550,0.29347,3412.5,3412.4,0.29346]
[1735661896746,0.29345,3412.6,3412.5,0.29345]
[1735661897253,3.6286,3412.8,3412.2,4.4288]
[1735661897450,0.29346,3412.6,3412.5,0.29345]
[1735661898250,0.29347,3412.5,3412.4,0.29346]
[1735661898544,0.29347,3412.5,3412.2,3.2078]
[1735661898746,3.2078,3412.4,3411.7,7.8438]
[1735661898943,0.29351,3412.1,3412.0,0.2935]
[1735661899142,3.50131,3412.1,3412.0,0.2935]
[1735661899341,3.2078,3412.1,3412.0,0.2935]
[1735661899545,0.29349,3412.3,3412.2,0.29349]
[1735661899746,0.29351,3412.1,3412.0,0.29349]